fUST/lending_fUST_20250801
["ID","MTS","AMOUNT","RATE_DAILY","PERIOD"]
[376509292,1754001032947,-460.0,0.00019178,2]
[376509294,1754001032955,-460.0,0.00019178,2]
[376509296,1754001032964,-460.0,0.00019178,2]
[376509298,1754001032974,-460.0,0.00019178,2]
[376509300,1754001032983,-646.43,0.00019178,2]
[376509301,1754001032992,-330.77632005,0.00019178,2]
[376509304,1754001033002,-267.53003553,0.00019178,2]
[376509306,1754001033011,-460.0,0.00019178,2]
[376509308,1754001033020,-460.0,0.00019178,2]
[376509309,1754001033029,-460.0,0.00019178,2]
[376509312,1754001033039,-460.0,0.00019178,2]
[376509313,1754001033048,-460.0,0.00019178,2]
[376509316,1754001033058,-460.0,0.00019178,2]
[376509318,1754001033067,-460.0,0.00019178,2]
[376509320,1754001033076,-460.0,0.00019178,2]
[376509322,1754001033086,-460.0,0.00019178,2]
[376509324,1754001033095,-460.0,0.00019178,2]
[376509326,1754001033104,-500.0,0.00019178,2]
[376509328,1754001033114,-460.0,0.00019178,2]
[376509330,1754001033123,-460.0,0.00019178,2]
[376509332,1754001033132,-460.0,0.00019178,2]
[376509333,1754001033141,-460.0,0.00019178,2]
[376509335,1754001033151,-460.0,0.00019178,2]
[376509338,1754001033160,-460.0,0.00019178,2]
[376509340,1754001033170,-460.0,0.00019178,2]
[376509342,1754001033179,-460.0,0.00019178,2]
[376509344,1754001033188,-460.0,0.00019178,2]
[376509346,1754001033199,-460.0,0.00019178,2]
[376509348,1754001033213,-200.60059337,0.00019178,2]
[376509350,1754001033226,-259.39940663,0.00019178,2]
[376509352,1754001033235,-326.03,0.00019178,2]
[376509354,1754001033246,-669.59318043,0.00019178,2]
[376509357,1754001033257,-623.03935041,0.00019178,2]
[376509359,1754001033274,-3186.57746916,0.00019178,2]
[376509361,1754001033284,-460.0,0.00019178,2]
[376509363,1754001033295,-460.0,0.00019178,2]
[376509365,1754001033305,-464.3775728,0.00019178,2]
[376509367,1754001033314,-460.0,0.00019178,2]
[376509370,1754001033323,-460.0,0.00019178,2]
[376509371,1754001033333,-516.15,0.00019178,2]
[376509373,1754001033342,-460.0,0.00019178,2]
[376509375,1754001033352,-460.0,0.00019178,2]
[376509378,1754001033363,-29.45803263,0.00019178,2]
[376509439,1754001042109,-0.13570974,0.000189,2]
[376509440,1754001042129,-201.60518754,0.000189,2]
[376509441,1754001042139,-430.54196737,0.00019178,2]
[376509442,1754001042148,-460.0,0.00019178,2]
[376509443,1754001042157,-460.0,0.00019178,2]
[376509444,1754001042167,-460.0,0.00019178,2]
[376509445,1754001042176,-460.0,0.00019178,2]
[376509446,1754001042185,-531.57,0.00019178,2]
[376509447,1754001042195,-460.0,0.00019178,2]
[376509448,1754001042205,-460.0,0.00019178,2]
[376509450,1754001042215,-460.38,0.00019178,2]
[376509452,1754001042224,-460.0,0.00019178,2]
[376509453,1754001042233,-460.0,0.00019178,2]
[376509455,1754001042243,-460.0,0.00019178,2]
[376509456,1754001042254,-460.0,0.00019178,2]
[376509457,1754001042264,-460.0,0.00019178,2]
[376509458,1754001042274,-205.65538169,0.00019178,2]
[376509459,1754001042285,-460.0,0.00019178,2]
[376509460,1754001042294,-169.76,0.00019178,2]
[376509461,1754001042305,-460.0,0.00019178,2]
[376509463,1754001042314,-460.0,0.00019178,2]
[376509466,1754001042324,-460.0,0.00019178,2]
[376509468,1754001042333,-460.0,0.00019178,2]
[376509470,1754001042343,-460.0,0.00019178,2]
[376509472,1754001042353,-1487.82,0.00019178,2]
[376509474,1754001042362,-460.0,0.00019178,2]
[376509476,1754001042376,-460.0,0.00019178,2]
[376509478,1754001042386,-460.0,0.00019178,2]
[376509480,1754001042395,-490.7,0.00019178,2]
[376509482,1754001042404,-436.98345803,0.00019178,2]
[376509484,1754001042414,-460.0,0.00019178,2]
[376509485,1754001042424,-497.27596729,0.00019178,2]
[376509486,1754001042433,-460.0,0.00019178,2]
[376509487,1754001042443,-463.35403102,0.00019178,2]
[376509488,1754001042452,-460.0,0.00019178,2]
[376509489,1754001042461,-732.05,0.00019178,2]
[376509490,1754001042471,-433.08405804,0.00019178,2]
[376509491,1754001042481,-460.0,0.00019178,2]
[376509492,1754001042490,-460.0,0.00019178,2]
[376509493,1754001042499,-460.0,0.00019178,2]
[376509494,1754001042508,-460.0,0.00019178,2]
[376509495,1754001042518,-484.03354821,0.00019178,2]
[376509496,1754001042527,-460.0,0.00019178,2]
[376509497,1754001042536,-460.0,0.00019178,2]
[376509498,1754001042546,-460.0,0.00019178,2]
[376509499,1754001042556,-460.0,0.00019178,2]
[376509500,1754001042565,-460.0,0.00019178,2]
[376509501,1754001042574,-677.22,0.00019178,2]
[376509502,1754001042583,-2040.07,0.00019178,2]
[376509503,1754001042593,-460.0,0.00019178,2]
[376509504,1754001042604,-460.0,0.00019178,2]
[376509505,1754001042613,-1000.0,0.00019178,2]
[376509506,1754001042627,-460.0,0.00019178,2]
[376509507,1754001042775,-464.17551154,0.00019178,2]
[376509508,1754001042785,-460.0,0.00019178,2]
[376509509,1754001042795,-460.0,0.00019178,2]
[376509510,1754001042804,-500.0,0.00019178,2]
[376509511,1754001042813,-500.0,0.00019178,2]
[376509512,1754001042822,-545.21,0.00019178,2]
[376509513,1754001042831,-500.0,0.00019178,2]
[376509514,1754001042841,-460.0,0.00019178,2]
[376509515,1754001042850,-500.0,0.00019178,2]
[376509516,1754001042859,-460.0,0.00019178,2]
[376509517,1754001042872,-460.0,0.00019178,2]
[376509518,1754001042882,-460.0,0.00019178,2]
[376509519,1754001042891,-4531.52,0.00019178,2]
[376509520,1754001042900,-460.0,0.00019178,2]
[376509521,1754001042910,-460.0,0.00019178,2]
[376509522,1754001042919,-460.0,0.00019178,2]
[376509523,1754001042928,-460.0,0.00019178,2]
[376509524,1754001042938,-510.42,0.00019178,2]
[376509525,1754001042947,-630.02,0.00019178,2]
[376509526,1754001042956,-460.0,0.00019178,2]
[376509527,1754001042966,-1350.49,0.00019178,2]
[376509528,1754001042975,-1274.85,0.00019178,2]
[376509529,1754001042984,-460.0,0.00019178,2]
[376509530,1754001042993,-702.17,0.00019178,2]
[376509531,1754001043003,-460.0,0.00019178,2]
[376509532,1754001043012,-460.0,0.00019178,2]
[376509533,1754001043020,-460.0,0.00019178,2]
[376509534,1754001043030,-581.87,0.00019178,2]
[376509535,1754001043039,-460.0,0.00019178,2]
[376509536,1754001043048,-462.28532286,0.00019178,2]
[376509537,1754001043058,-532.91,0.00019178,2]
[376509538,1754001043067,-462.48905074,0.00019178,2]
[376509539,1754001043076,-460.0,0.00019178,2]
[376509540,1754001043085,-460.0,0.00019178,2]
[376509541,1754001043094,-460.0,0.00019178,2]
[376509542,1754001043103,-1069.6,0.00019178,2]
[376509543,1754001043112,-460.0,0.00019178,2]
[376509544,1754001043124,-460.0,0.00019178,2]
[376509545,1754001043134,-907.56,0.00019178,2]
[376509546,1754001043143,-460.0,0.00019178,2]
[376509547,1754001043152,-460.0,0.00019178,2]
[376509548,1754001043162,-520.59,0.00019178,2]
[376509549,1754001043171,-460.0,0.00019178,2]
[376509550,1754001043180,-462.7316633,0.00019178,2]
[376509551,1754001043190,-460.0,0.00019178,2]
[376509552,1754001043200,-703.74,0.00019178,2]
[376509553,1754001043213,-460.0,0.00019178,2]
[376509554,1754001043222,-460.0,0.00019178,2]
[376509555,1754001043232,-224.61314193,0.00019178,2]
[376509556,1754001043242,-460.0,0.00019178,2]
[376509557,1754001043252,-460.0,0.00019178,2]
[376509558,1754001043262,-460.0,0.00019178,2]
[376509559,1754001043271,-460.0,0.00019178,2]
[376509560,1754001043281,-261.88627075,0.00019178,2]
[376509561,1754001043290,-544.21595373,0.00019178,2]
[376509562,1754001043300,-460.0,0.00019178,2]
[376509563,1754001043309,-1480.42,0.00019178,2]
[376509564,1754001043318,-460.0,0.00019178,2]
[376509565,1754001043327,-460.0,0.00019178,2]
[376509566,1754001043337,-641.92,0.00019178,2]
[376509567,1754001043346,-460.0,0.00019178,2]
[376509568,1754001043355,-460.0,0.00019178,2]
[376509569,1754001043367,-460.0,0.00019178,2]
[376509570,1754001043376,-460.0,0.00019178,2]
[376509571,1754001043386,-460.0,0.00019178,2]
[376509572,1754001043395,-460.0,0.00019178,2]
[376509573,1754001043404,-514.71,0.00019178,2]
[376509574,1754001043414,-460.0,0.00019178,2]
[376509575,1754001043423,-460.0,0.00019178,2]
[376509576,1754001043432,-507.71,0.00019178,2]
[376509577,1754001043441,-460.0,0.00019178,2]
[376509578,1754001043451,-368.4763172,0.00019178,2]
[376509579,1754001043460,-574.26726683,0.00019178,2]
[376509580,1754001043469,-472.12,0.00019178,2]
[376509581,1754001043479,-733.84,0.00019178,2]
[376509582,1754001043488,-607.70502119,0.00019178,2]
[376509583,1754001043502,-431.8799351,0.00019178,2]
[376509584,1754001043513,-446.13504371,0.00019178,2]
[376509585,1754001043522,-1813.57,0.00019178,2]
[376509586,1754001043532,-460.0,0.00019178,2]
[376509587,1754001043541,-500.0,0.00019178,2]
[376509588,1754001043551,-2690.21,0.00019178,2]
[376509589,1754001043561,-460.0,0.00019178,2]
[376509590,1754001043570,-460.0,0.00019178,2]
[376509591,1754001043579,-1083.09,0.00019178,2]
[376509592,1754001043589,-460.0,0.00019178,2]
[376509593,1754001043598,-2157.6,0.00019178,2]
[376509594,1754001043607,-460.0,0.00019178,2]
[376509595,1754001043617,-460.0,0.00019178,2]
[376509596,1754001043626,-460.0,0.00019178,2]
[376509597,1754001043635,-471.03,0.00019178,2]
[376509598,1754001043645,-460.0,0.00019178,2]
[376509599,1754001043654,-460.0,0.00019178,2]
[376509600,1754001043663,-460.0,0.00019178,2]
[376509601,1754001043673,-1172.01,0.00019178,2]
[376509602,1754001043682,-500.0,0.00019178,2]
[376509603,1754001043692,-666.0,0.00019178,2]
[376509604,1754001043702,-175.902201,0.00019178,2]
[376509605,1754001043712,-2105.41764886,0.00019221,2]
[376509606,1754001043721,-176.0,0.0001926,3]
[376509607,1754001043730,-2183.31810187,0.00019276,2]
[376509608,1754001043740,-2264.10087164,0.00019331,2]
[376509609,1754001043750,-76.92282364,0.00019386,2]
[376509610,1754001043763,-2270.94978025,0.00019386,2]
[376509611,1754001043772,-2434.74389024,0.00019441,2]
[376509612,1754001043781,-212.33975691,0.00019452,2]
[376509613,1754001043791,-263.19628787,0.00019452,2]
[376509614,1754001043800,-460.0,0.00019452,2]
[376509615,1754001043808,-174.43682753,0.00019452,2]
[376509616,1754001043831,-285.56317247,0.00019452,2]
[376509617,1754001043840,-460.0,0.00019452,2]
[376509618,1754001043849,-460.0,0.00019452,2]
[376509619,1754001043860,-460.0,0.00019452,2]
[376509620,1754001043872,-460.0,0.00019452,2]
[376509621,1754001043881,-460.0,0.00019452,2]
[376509622,1754001043891,-460.0,0.00019452,2]
[376509623,1754001043901,-460.0,0.00019452,2]
[376509624,1754001043911,-202.35682753,0.00019452,2]
[376509625,1754001043923,-257.64317247,0.00019452,2]
[376509626,1754001043932,-76.65469562,0.00019452,2]
[376509627,1754001043943,-383.34530438,0.00019452,2]
[376509628,1754001043951,-118.46277955,0.00019452,2]
[376509629,1754001043963,-527.96722045,0.00019452,2]
[376509630,1754001043972,-460.0,0.00019452,2]
[376509631,1754001043982,-83.33827255,0.00019452,2]
[376509632,1754001044023,-376.66172745,0.00019452,2]
[376509633,1754001044032,-460.0,0.00019452,2]
[376509634,1754001044042,-386.22224264,0.00019452,2]
[376509635,1754001044053,-17.14049445,0.00019452,2]
[376509636,1754001044063,-460.0,0.00019452,2]
[376509637,1754001044073,-186.16841269,0.00019452,2]
[376509638,1754001044083,-460.0,0.00019452,2]
[376509639,1754001044092,-142.78047931,0.00019452,2]
[376509640,1754001044103,-1113.40947766,0.00019452,2]
[376509641,1754001044116,-2125.30225648,0.00019452,2]
[376509642,1754001044128,-1097.71778655,0.00019452,2]
[376509643,1754001044137,-460.0,0.00019452,2]
[376509644,1754001044147,-460.0,0.00019452,2]
[376509645,1754001044156,-460.0,0.00019452,2]
[376509646,1754001044165,-516.15,0.00019452,2]
[376509647,1754001044175,-460.0,0.00019452,2]
[376509648,1754001044184,-211.77451908,0.00019452,2]
[376509649,1754001044196,-248.22548092,0.00019452,2]
[376509650,1754001044207,-531.57,0.00019452,2]
[376509651,1754001044217,-460.0,0.00019452,2]
[376509652,1754001044226,-460.0,0.00019452,2]
[376509653,1754001044236,-460.38,0.00019452,2]
[376509654,1754001044246,-460.0,0.00019452,2]
[376509655,1754001044255,-460.0,0.00019452,2]
[376509656,1754001044264,-462.12385507,0.00019452,2]
[376509657,1754001044274,-460.0,0.00019452,2]
[376509658,1754001044285,-460.0,0.00019452,2]
[376509659,1754001044295,-460.0,0.00019452,2]
[376509660,1754001044305,-460.0,0.00019452,2]
[376509661,1754001044315,-1552.51,0.00019452,2]
[376509663,1754001044324,-1371.8811281,0.00019452,2]
[376509679,1754001044961,-1217.5051285,0.00019178,2]
[376509680,1754001045055,-737.5648715,0.00019178,2]
[376509681,1754001045065,-460.0,0.00019178,2]
[376509682,1754001045075,-115.9388719,0.00019452,2]
[376509684,1754001045084,-460.0,0.00019452,2]
[376509685,1754001045094,-490.7,0.00019452,2]
[376509688,1754001045103,-460.0,0.00019452,2]
[376509689,1754001045113,-732.05,0.00019452,2]
[376509690,1754001045124,-460.0,0.00019452,2]
[376509691,1754001045134,-339.98630756,0.00019452,2]
[376509692,1754001045143,-677.22,0.00019452,2]
[376509693,1754001045153,-460.0,0.00019452,2]
[376509694,1754001045162,-545.21,0.00019452,2]
[376509695,1754001045172,-460.0,0.00019452,2]
[376509696,1754001045181,-4531.52,0.00019452,2]
[376509697,1754001045191,-411.48066835,0.00019452,2]
[376509698,1754001045203,-460.0,0.00019452,2]
[376509699,1754001045213,-510.42,0.00019452,2]
[376509700,1754001045222,-630.02,0.00019452,2]
[376509701,1754001045231,-460.0,0.00019452,2]
[376509702,1754001045241,-1350.49,0.00019452,2]
[376509703,1754001045251,-1274.85,0.00019452,2]
[376509704,1754001045261,-460.0,0.00019452,2]
[376509705,1754001045271,-702.17,0.00019452,2]
[376509706,1754001045281,-460.0,0.00019452,2]
[376509707,1754001045291,-581.87,0.00019452,2]
[376509708,1754001045300,-460.0,0.00019452,2]
[376509709,1754001045310,-532.91,0.00019452,2]
[376509710,1754001045319,-1069.6,0.00019452,2]
[376509711,1754001045328,-460.0,0.00019452,2]
[376509712,1754001045337,-907.56,0.00019452,2]
[376509713,1754001045347,-520.59,0.00019452,2]
[376509714,1754001045356,-460.0,0.00019452,2]
[376509715,1754001045365,-460.0,0.00019452,2]
[376509716,1754001045376,-703.74,0.00019452,2]
[376509717,1754001045385,-460.0,0.00019452,2]
[376509718,1754001045394,-460.0,0.00019452,2]
[376509719,1754001045404,-1480.42,0.00019452,2]
[376509720,1754001045414,-641.92,0.00019452,2]
[376509721,1754001045425,-460.0,0.00019452,2]
[376509722,1754001045435,-460.0,0.00019452,2]
[376509723,1754001045445,-514.71,0.00019452,2]
[376509724,1754001045455,-507.71,0.00019452,2]
[376509725,1754001045465,-472.12,0.00019452,2]
[376509726,1754001045474,-733.84,0.00019452,2]
[376509727,1754001045483,-1485.72,0.00019452,2]
[376509728,1754001045493,-1813.57,0.00019452,2]
[376509729,1754001045503,-2690.21,0.00019452,2]
[376509730,1754001045518,-460.0,0.00019452,2]
[376509731,1754001045528,-1083.09,0.00019452,2]
[376509732,1754001045537,-460.0,0.00019452,2]
[376509733,1754001045546,-2157.6,0.00019452,2]
[376509734,1754001045556,-460.0,0.00019452,2]
[376509735,1754001045565,-471.03,0.00019452,2]
[376509736,1754001045575,-1172.01,0.00019452,2]
[376509737,1754001045585,-800.0,0.00019455,2]
[376509738,1754001045595,-500.0,0.00019473,2]
[376509739,1754001045605,-502.2644397,0.00019473,2]
[376509740,1754001045615,-500.0,0.00019473,2]
[376509741,1754001045624,-500.0,0.00019473,2]
[376509742,1754001045637,-500.0,0.00019473,2]
[376509743,1754001045647,-502.55260872,0.00019473,2]
[376509744,1754001045656,-515.48631446,0.00019473,2]
[376509745,1754001045666,-500.0,0.00019473,2]
[376509746,1754001045675,-500.0,0.00019473,2]
[376509747,1754001045684,-675.49641965,0.00019496,2]
[376509748,1754001045693,-500.0,0.00019499,2]
[376509749,1754001045703,-726.8,0.000195,2]
[376509750,1754001045712,-200.0,0.00019547,15]
[376509751,1754001045722,-200.0,0.00019547,15]
[376509752,1754001045731,-200.0,0.00019547,15]
[376509753,1754001045740,-200.0,0.00019547,15]
[376509754,1754001045750,-200.0,0.00019547,15]
[376509755,1754001045760,-200.0,0.00019547,15]
[376509756,1754001045770,-200.0,0.00019547,15]
[376509758,1754001045779,-200.0,0.00019547,15]
[376509759,1754001045788,-1004.52538243,0.00019618,2]
[376509760,1754001045796,-503.40990452,0.00019721,2]
[376509762,1754001045805,-460.0,0.00019726,2]
[376509764,1754001045815,-561.16,0.00019726,2]
[376509766,1754001045823,-460.0,0.00019726,2]
[376509767,1754001045832,-460.0,0.00019726,2]
[376509768,1754001045842,-460.0,0.00019726,2]
[376509769,1754001045852,-150.407934,0.00019726,2]
[376509770,1754001045861,-460.0,0.00019726,2]
[376509771,1754001045872,-646.43,0.00019726,2]
[376509772,1754001045882,-460.0,0.00019726,2]
[376509773,1754001045891,-460.0,0.00019726,2]
[376509774,1754001045901,-318.82108637,0.00019726,2]
[376509775,1754001045910,-460.0,0.00019726,2]
[376509777,1754001045920,-4479.21,0.00019726,2]
[376509778,1754001045929,-460.0,0.00019726,2]
[376509780,1754001045938,-460.0,0.00019726,2]
[376509782,1754001045947,-516.15,0.00019726,2]
[376509784,1754001045956,-460.0,0.00019726,2]
[376509785,1754001045965,-460.0,0.00019726,2]
[376509787,1754001045975,-531.57,0.00019726,2]
[376509788,1754001045984,-460.0,0.00019726,2]
[376509789,1754001045993,-460.0,0.00019726,2]
[376509790,1754001046003,-460.38,0.00019726,2]
[376509791,1754001046011,-460.0,0.00019726,2]
[376509792,1754001046021,-460.0,0.00019726,2]
[376509793,1754001046030,-460.0,0.00019726,2]
[376509794,1754001046039,-460.0,0.00019726,2]
[376509795,1754001046048,-1487.82,0.00019726,2]
[376509796,1754001046057,-460.0,0.00019726,2]
[376509798,1754001046066,-490.7,0.00019726,2]
[376509799,1754001046075,-460.0,0.00019726,2]
[376509800,1754001046084,-732.05,0.00019726,2]
[376509801,1754001046093,-677.22,0.00019726,2]
[376509802,1754001046103,-460.0,0.00019726,2]
[376509803,1754001046115,-545.21,0.00019726,2]
[376509804,1754001046125,-492.31866187,0.00019726,2]
[376509805,1754001046135,-4531.52,0.00019726,2]
[376509806,1754001046144,-460.0,0.00019726,2]
[376509807,1754001046153,-510.42,0.00019726,2]
[376509808,1754001046164,-630.02,0.00019726,2]
[376509810,1754001046173,-460.0,0.00019726,2]
[376509812,1754001046183,-1350.49,0.00019726,2]
[376509813,1754001046192,-1274.85,0.00019726,2]
[376509814,1754001046204,-460.0,0.00019726,2]
[376509815,1754001046214,-702.17,0.00019726,2]
[376509816,1754001046225,-460.0,0.00019726,2]
[376509817,1754001046236,-581.87,0.00019726,2]
[376509818,1754001046246,-460.0,0.00019726,2]
[376509819,1754001046255,-532.91,0.00019726,2]
[376509820,1754001046264,-1069.6,0.00019726,2]
[376509821,1754001046274,-460.0,0.00019726,2]
[376509822,1754001046285,-907.56,0.00019726,2]
[376509823,1754001046294,-520.59,0.00019726,2]
[376509824,1754001046303,-460.0,0.00019726,2]
[376509825,1754001046313,-460.0,0.00019726,2]
[376509826,1754001046322,-703.74,0.00019726,2]
[376509827,1754001046331,-460.0,0.00019726,2]
[376509828,1754001046341,-460.0,0.00019726,2]
[376509829,1754001046350,-1480.42,0.00019726,2]
[376509830,1754001046359,-641.92,0.00019726,2]
[376509831,1754001046369,-514.71,0.00019726,2]
[376509832,1754001046378,-507.71,0.00019726,2]
[376509833,1754001046387,-472.12,0.00019726,2]
[376509834,1754001046397,-733.84,0.00019726,2]
[376509835,1754001046407,-1485.72,0.00019726,2]
[376509836,1754001046416,-1813.57,0.00019726,2]
[376509838,1754001046426,-2690.21,0.00019726,2]
[376509839,1754001046435,-460.0,0.00019726,2]
[376509840,1754001046444,-1083.09,0.00019726,2]
[376509841,1754001046454,-2157.6,0.00019726,2]
[376509842,1754001046463,-471.03,0.00019726,2]
[376509843,1754001046480,-1172.01,0.00019726,2]
[376509844,1754001046492,-500.0,0.00019738,2]
[376509845,1754001046502,-500.0,0.00019824,2]
[376509846,1754001046512,-781.83665124,0.00019831,2]
[376509847,1754001046522,-460.0,0.0002,2]
[376509848,1754001046531,-206.9936,0.0002,2]
[376509849,1754001046541,-460.0,0.0002,2]
[376509850,1754001046550,-362.75310159,0.0002,2]
[376509851,1754001046559,-646.43,0.0002,2]
[376509852,1754001046569,-460.0,0.0002,2]
[376509853,1754001046579,-460.0,0.0002,2]
[376509854,1754001046588,-460.0,0.0002,2]
[376509855,1754001046597,-4479.21,0.0002,2]
[376509856,1754001046608,-460.0,0.0002,2]
[376509857,1754001046619,-460.0,0.0002,2]
[376509858,1754001046629,-516.15,0.0002,2]
[376509859,1754001046638,-460.0,0.0002,2]
[376509860,1754001046647,-531.57,0.0002,2]
[376509861,1754001046657,-460.0,0.0002,2]
[376509862,1754001046666,-460.0,0.0002,2]
[376509863,1754001046675,-460.38,0.0002,2]
[376509864,1754001046685,-460.0,0.0002,2]
[376509865,1754001046694,-460.0,0.0002,2]
[376509866,1754001046703,-460.0,0.0002,2]
[376509867,1754001046713,-1487.82,0.0002,2]
[376509868,1754001046723,-460.0,0.0002,2]
[376509869,1754001046732,-490.7,0.0002,2]
[376509870,1754001046741,-732.05,0.0002,2]
[376509871,1754001046751,-677.22,0.0002,2]
[376509872,1754001046761,-460.0,0.0002,2]
[376509873,1754001046770,-545.21,0.0002,2]
[376509874,1754001046779,-4531.52,0.0002,2]
[376509875,1754001046788,-460.0,0.0002,2]
[376509876,1754001046797,-510.42,0.0002,2]
[376509877,1754001046807,-300.0,0.0002,2]
[376509878,1754001046816,-630.02,0.0002,2]
[376509879,1754001046826,-1350.49,0.0002,2]
[376509880,1754001046836,-1274.85,0.0002,2]
[376509881,1754001046845,-460.0,0.0002,2]
[376509882,1754001046854,-702.17,0.0002,2]
[376509883,1754001046864,-460.0,0.0002,2]
[376509884,1754001046875,-581.87,0.0002,2]
[376509885,1754001046885,-460.0,0.0002,2]
[376509886,1754001046895,-532.91,0.0002,2]
[376509902,1754001047084,-1069.6,0.0002,2]
[376509903,1754001047094,-907.56,0.0002,2]
[376509904,1754001047103,-520.59,0.0002,2]
[376509905,1754001047113,-460.0,0.0002,2]
[376509906,1754001047123,-460.0,0.0002,2]
[376509907,1754001047132,-703.74,0.0002,2]
[376509908,1754001047142,-460.0,0.0002,2]
[376509909,1754001047156,-460.0,0.0002,2]
[376509910,1754001047165,-1480.42,0.0002,2]
[376509911,1754001047175,-641.92,0.0002,2]
[376509912,1754001047184,-514.71,0.0002,2]
[376509913,1754001047193,-507.71,0.0002,2]
[376509914,1754001047206,-472.12,0.0002,2]
[376509915,1754001047215,-733.84,0.0002,2]
[376509916,1754001047225,-1485.72,0.0002,2]
[376509917,1754001047234,-1813.57,0.0002,2]
[376509918,1754001047244,-2690.21,0.0002,2]
[376509919,1754001047252,-460.0,0.0002,2]
[376509920,1754001047262,-1083.09,0.0002,2]
[376509921,1754001047271,-2157.6,0.0002,2]
[376509922,1754001047280,-471.03,0.0002,2]
[376509923,1754001047291,-1172.01,0.0002,2]
[376509924,1754001047301,-500.0,0.00020021,2]
[376509925,1754001047310,-1000.0,0.00020021,2]
[376509926,1754001047319,-1000.0,0.00020021,2]
[376509927,1754001047328,-909.14410612,0.00020021,2]
[376509928,1754001047348,-460.682337,0.00020054,2]
[376509929,1754001047366,-526.848153,0.00020055,2]
[376509930,1754001047376,-160.0,0.00020055,2]
[376509931,1754001047388,-12642.0599901,0.00020055,2]
[376509932,1754001047398,-160.0,0.00020055,2]
[376509933,1754001047408,-216.18812866,0.00020055,2]
[376509934,1754001047417,-841.37753757,0.00020055,2]
[376509935,1754001047426,-160.0,0.00020055,2]
[376509936,1754001047436,-214.99831783,0.00020056,2]
[376509937,1754001047445,-231.48161788,0.00020056,2]
[376509938,1754001047454,-299.57468199,0.00020124,2]
[376509939,1754001047463,-355.76404,0.00020187,2]
[376509940,1754001047472,-460.0,0.00020273,2]
[376509941,1754001047482,-460.0,0.00020273,2]
[376509942,1754001047491,-646.43,0.00020273,2]
[376509943,1754001047500,-460.0,0.00020273,2]
[376509944,1754001047509,-460.0,0.00020273,2]
[376509945,1754001047518,-460.0,0.00020273,2]
[376509946,1754001047527,-3577.72761747,0.00020273,2]
[376509947,1754001047626,-901.48238253,0.00020273,2]
[376509948,1754001047636,-460.0,0.00020273,2]
[376509949,1754001047645,-460.0,0.00020273,2]
[376509950,1754001047655,-516.15,0.00020273,2]
[376509951,1754001047667,-460.0,0.00020273,2]
[376509952,1754001047676,-531.57,0.00020273,2]
[376509953,1754001047685,-460.0,0.00020273,2]
[376509954,1754001047694,-460.38,0.00020273,2]
[376509955,1754001047703,-588.47850261,0.00020273,2]
[376509956,1754001047712,-460.0,0.00020273,2]
[376509957,1754001047721,-460.0,0.00020273,2]